[Event "34th MPL National U14G-ch 2022"]
[Site "Ahmedabad"]
[Date "2022.05.11"]
[Round "5.2"]
[White "Mrittika Mallick"]
[Black "Chaarvi Choudhury"]
[Result "1/2-1/2"]
[ECO "B06"]
[WhiteElo "1982"]
[BlackElo "1456"]
[Annotator "TA"]
[PlyCount "72"]
[EventDate "2022.05.09"]
[EventType "swiss"]
[EventCountry "IND"]
[SourceTitle "playchess.com"]
[Source "ChessBase"]
[SourceQuality "1"]
[TimeControl "5400+30"]

{[%evp 10,72,54,6,8,0,15,33,26,0,0,0,46,0,25,-25,0,0,0,-23,-15,-6,4,0,1,10,10,11,48,45,53,28,28,12,6,0,0,0,12,4,20,3,3,0,0,0,0,0,0,0,0,0,0,0,0,0,0,0,0,0,0,0,0,-9,0]} 1. e4 {[%emt 0:00:28]} c5 {[%emt 0:00:06]} 2. Nf3 {[%emt 0:00:16]} g6 {[%emt 0:00:06]} 3. c3 {[%emt 0:02:04]} d5 {[%emt 0:00:20]} 4. exd5 {[%emt 0:00:46]} Qxd5 {[%emt 0:00:20]} 5. d4 {[%emt 0:00:45]} Bg7 {[%emt 0:00:22]} 6. Be3 {[%emt 0:01:29]} (6. Na3 $14 {was preferrable.}) 6... Nf6 $11 {[%emt 0:02:28] B06: Modern Defence.} 7. dxc5 {[%emt 0:05:41]} (7. Nbd2 {with more complications.} cxd4 8. Bc4 Qd6 9. Nxd4 O-O 10. Nb5) 7... Qxd1+ $1 {[%emt 0:00:15]} 8. Kxd1 {[%emt 0:00:06]} Ng4 {[%emt 0:00:15] White is slightly better.} 9. Nbd2 {[%emt 0:13:06]} Nxe3+ {[%emt 0:01:56]} 10. fxe3 {[%emt 0:00:10]} O-O {[%emt 0:02:35] [#]} (10... Nd7 $1 $11 {is more appropriate.}) 11. Bb5 $146 {[%emt 0:02:34]} (11. Kc2 $14 {is superior.}) ({Predecessor:} 11. Bc4 a5 12. Nd4 Na6 13. Ne4 e5 14. Nb5 Bh6 15. Ke2 Kg7 16. h3 f5 17. Ned6 {1-0 (37) Panesso Rivera,H (2383)-Avila Pavas,S (2261) Medellin 2018}) 11... Bd7 {[%emt 0:07:33]} 12. Bd3 {[%emt 0:01:34]} ({Better is} 12. Bxd7 Nxd7 13. Nb3) 12... Ba4+ {[%emt 0:05:14][%mdl 1024] Black has compensation. This bishop pair is nice.} 13. Bc2 {[%emt 0:02:18]} Bc6 {[%emt 0:02:53]} 14. Ke2 {[%emt 0:11:29]} Nd7 {[%emt 0:03:33]} 15. Nb3 {[%emt 0:06:28]} Ba4 {[%emt 0:07:38]} 16. Be4 {[%emt 0:06:59]} Bxb3 {[%emt 0:03:56][%mdl 64] [#] Remove Defender} 17. axb3 {[%emt 0:00:09][%cal Ba2b3,Bb3b4][%mdl 32]} Nxc5 {[%emt 0:00:27]} 18. Bc2 {[%emt 0:00:14]} a6 {[%emt 0:13:20]} 19. b4 {[%emt 0:00:45]} Nd7 {[%emt 0:00:39]} 20. Be4 {[%emt 0:02:37]} Rab8 {[%emt 0:01:23]} 21. Ra5 {[%emt 0:02:24]} Rfc8 {[%emt 0:07:06] The position is equal.} 22. Rha1 {[%emt 0:03:44]} Rc7 {[%emt 0:10:10]} 23. Bc2 {[%emt 0:09:17]} Nb6 {[%emt 0:02:07]} 24. Bb3 {[%emt 0:01:24]} Nd7 {[%emt 0:08:02][%cal Bb6d7,Bd7e5,Be5c6][%mdl 32]} 25. Rd1 {[%emt 0:02:46]} e6 {[%emt 0:02:30]} 26. Ng5 {[%emt 0:07:38][%cal Og5e6,Bf3g5,Bg5e4,Be4c5][%mdl 32] And now Nxe6! would win.} Ne5 {[%emt 0:01:10]} 27. Ne4 {[%emt 0:01:36]} Nc6 {[%emt 0:04:30]} 28. Raa1 {[%emt 0:00:48]} h6 {[%emt 0:02:10]} 29. Rd2 {[%emt 0:02:30]} Kf8 {[%emt 0:00:24]} 30. Nc5 {[%emt 0:02:29] Strongly threatening Nd7+.} Ke7 {[%emt 0:00:16] Prevents Nd7.} 31. Rad1 {[%emt 0:00:33]} Rd8 {[%emt 0:00:28] Prevents Rd7+.} 32. Rxd8 {[%emt 0:02:10]} Nxd8 {[%emt 0:00:03]} 33. Nd3 {[%emt 0:02:39]} Nc6 {[%emt 0:01:38]} 34. Ba4 {[%emt 0:01:39]} Ne5 {[%emt 0:01:26]} 35. Nxe5 {[%emt 0:01:56]} Bxe5 {[%emt 0:00:03]} 36. Kf3 {[%emt 0:00:34]} Bg7 {[%emt 0:02:07] Weighted Error Value: White=0.08 (flawless) /Black=0.06 (flawless)} ({Don't do} 36... Bxh2 37. g3 $16) 1/2-1/2

[Event "34th MPL National U14G-ch 2022"]
[Site "Ahmedabad"]
[Date "2022.05.11"]
[Round "5.3"]
[White "Roy Aanya"]
[Black "Pragnya H G"]
[Result "1-0"]
[ECO "B92"]
[WhiteElo "1560"]
[BlackElo "1605"]
[Annotator "NA RC COMBH"]
[PlyCount "119"]
[EventDate "2022.05.09"]
[EventType "swiss"]
[EventCountry "IND"]
[SourceTitle "playchess.com"]
[Source "ChessBase"]
[SourceQuality "1"]
[TimeControl "5400+30"]

1. e4 {[%emt 1:31:00]} c5 {[%emt 0:02:12]} 2. Nf3 {[%emt 0:00:00]} d6 {[%emt 0:00:12]} 3. d4 {[%emt 0:00:00]} cxd4 {[%emt 0:00:04]} 4. Nxd4 {[%emt 0:00:00]} Nf6 {[%emt 0:00:05]} 5. Nc3 {[%emt 0:00:00]} a6 {[%emt 0:00:05]} 6. Be2 {[%emt 0:00:00]} e5 {[%emt 0:00:05]} 7. Nb3 {[%emt 0:00:00]} Be7 {[%emt 0:00:05]} 8. O-O {[%emt 0:00:00]} O-O {[%emt 0:00:05]} 9. Kh1 {[%emt 0:00:00]} Nbd7 {[%emt 0:00:09]} 10. f4 {[%emt 0:00:00]} b5 {[%emt 0:00:07]} 11. a4 {[%emt 0:00:00]} b4 {[%emt 0:00:59]} 12. Nd5 {[%emt 0:00:00]} a5 {[%emt 0:08:32]} 13. Bf3 {[%emt 0:00:00]} Bb7 {[%emt 0:03:09]} 14. c4 {[%emt 0:00:00]} Nb6 {[%emt 0:06:17]} 15. Qe2 {[%emt 0:00:00]} Nfxd5 {[%emt 0:03:26]} 16. exd5 {[%emt 0:00:00]} Bf6 {[%emt 0:03:38]} 17. Be3 {[%emt 0:00:00]} exf4 {[%emt 0:03:39]} 18. Bxf4 {[%emt 0:00:00]} Re8 {[%emt 0:00:22]} 19. Qc2 {[%emt 0:00:00]} Rc8 {[%emt 0:08:51]} 20. Nxa5 {[%emt 0:00:00]} Bxd5 {[%emt 0:01:04]} 21. Bxd5 {[%emt 0:00:00]} Nxd5 {[%emt 0:00:06]} 22. Nb7 {[%emt 0:00:00]} Qc7 {[%emt 0:58:18]} 23. Nxd6 {[%emt 0:00:00]} Nxf4 {[%emt 0:00:00]} 24. Nxe8 {[%emt 0:00:00]} Rxe8 {[%emt 0:00:00]} 25. a5 {[%emt 0:00:00]} Ne6 {[%emt 0:00:00]} 26. a6 {[%emt 0:00:00]} Ra8 {[%emt 0:02:00]} 27. Qe4 {[%emt 0:00:00]} Ra7 {[%emt 0:00:00]} 28. Ra4 {[%emt 0:00:00]} Qb6 {[%emt 0:00:00]} 29. Qe1 {[%emt 0:00:00]} Be7 {[%emt 0:00:00]} 30. Qd2 {[%emt 0:00:00]} Rxa6 {[%emt 0:00:00]} 31. Qd7 {[%emt 0:00:00]} Qc6 {[%emt 0:00:00]} 32. Qxe7 {[%emt 0:00:00]} h6 {[%emt 0:00:00]} 33. Rxa6 {[%emt 0:00:00]} Qxa6 {[%emt 0:00:00]} 34. Qxf7+ {[%emt 0:00:00]} Kh8 {[%emt 0:00:00]} 35. Qe8+ {[%emt 0:00:00]} Kh7 {[%emt 0:00:00]} 36. Qb5 {[%emt 0:00:00]} Qd6 {[%emt 0:00:00]} 37. Qd5 {[%emt 0:00:00]} Qb6 {[%emt 0:00:00]} 38. h3 {[%emt 0:00:00]} Qe3 {[%emt 0:00:00]} 39. Qf3 {[%emt 0:00:00]} Qb6 {[%emt 0:00:00]} 40. Re1 {[%emt 0:00:00]} g6 {[%emt 0:00:00]} 41. Qf7+ {[%emt 0:00:11]} Ng7 {[%emt 0:00:00]} 42. b3 {[%emt 0:01:38]} Qd4 {[%emt 0:00:00]} 43. Qe7 {[%emt 0:00:52]} Qc3 {[%emt 0:00:00]} 44. Qe3 {[%emt 0:00:48]} Qc2 {[%emt 0:00:00]} 45. Rc1 {[%emt 0:00:22]} Qb2 {[%emt 0:00:00]} 46. Rd1 {[%emt 0:00:50]} Nf5 {[%emt 0:00:00]} 47. Rd7+ {[%emt 0:00:41]} Ng7 {[%emt 0:00:00]} 48. Qd4 {[%emt 0:00:18]} Qxd4 {[%emt 0:00:00]} 49. Rxd4 {[%emt 0:00:02]} Ne6 {[%emt 0:00:00]} 50. Rd7+ {[%emt 0:00:08]} Kg8 {[%emt 0:00:00]} 51. Rb7 {[%emt 0:00:07]} Nc5 {[%emt 0:00:00]} 52. Rxb4 {[%emt 0:00:05]} Kf7 {[%emt 0:00:00]} 53. Rb6 {[%emt 0:00:18]} h5 {[%emt 0:00:00]} 54. g3 {[%emt 0:00:41]} g5 {[%emt 0:00:00]} 55. Kg2 {[%emt 0:00:07]} Ke7 {[%emt 0:00:00]} 56. Kf3 {[%emt 0:00:14]} Kd7 {[%emt 0:00:00]} 57. Rb5 {[%emt 0:00:17]} Kc6 {[%emt 0:00:00]} 58. Rxc5+ {[%emt 0:00:11]} Kxc5 {[%emt 0:00:00]} 59. Ke4 {[%emt 0:00:04]} h4 {[%emt 0:00:00]} 60. g4 {[%emt 0:00:05]} 1-0

[Event "34th MPL National U14G-ch 2022"]
[Site "Ahmedabad"]
[Date "2022.05.11"]
[Round "5.4"]
[White "Shreya G Hipparagi"]
[Black "Dakshita Kumawat"]
[Result "1-0"]
[ECO "C01"]
[WhiteElo "1548"]
[BlackElo "1575"]
[Annotator "NA RC COMBH"]
[PlyCount "63"]
[EventDate "2022.05.09"]
[EventType "swiss"]
[EventCountry "IND"]
[SourceTitle "playchess.com"]
[Source "ChessBase"]
[SourceQuality "1"]
[TimeControl "5400+30"]

1. e4 {[%emt 0:01:14]} e6 {[%emt 0:00:01]} 2. d4 {[%emt 0:01:02]} d5 {[%emt 0:00:11]} 3. exd5 {[%emt 0:01:55]} exd5 {[%emt 0:00:05]} 4. Nf3 {[%emt 0:00:31]} Bd6 {[%emt 0:00:10]} 5. Bd3 {[%emt 0:00:52]} Ne7 {[%emt 0:00:18]} 6. Nc3 {[%emt 0:01:01]} Bg4 {[%emt 0:10:03]} 7. Bg5 {[%emt 0:03:36]} f6 {[%emt 0:01:12]} 8. Bh4 {[%emt 0:00:33]} Nbc6 {[%emt 0:02:41]} 9. Nb5 {[%emt 0:02:40]} Bf4 {[%emt 0:05:18]} 10. c3 {[%emt 0:02:18]} a6 {[%emt 0:04:21]} 11. Na3 {[%emt 0:01:44]} Qd6 {[%emt 0:01:35]} 12. Nc2 {[%emt 0:03:24]} O-O-O {[%emt 0:11:31]} 13. Bg3 {[%emt 0:06:12]} Rde8 {[%emt 0:04:43]} 14. O-O {[%emt 0:01:13]} g5 {[%emt 0:02:29]} 15. Re1 {[%emt 0:04:24]} h5 {[%emt 0:01:40]} 16. Ne3 {[%emt 0:02:22]} Be6 {[%emt 0:03:57]} 17. c4 {[%emt 0:04:34]} h4 {[%emt 0:12:49]} 18. Bxf4 {[%emt 0:06:32]} gxf4 {[%emt 0:02:57]} 19. cxd5 {[%emt 0:07:24]} Nxd5 {[%emt 0:03:38]} 20. Nf5 {[%emt 0:03:52]} Bxf5 {[%emt 0:06:55]} 21. Bxf5+ {[%emt 0:00:33]} Kb8 {[%emt 0:00:14]} 22. Rxe8+ {[%emt 0:01:59]} Rxe8 {[%emt 0:00:03]} 23. Nxh4 {[%emt 0:02:15]} Qb4 {[%emt 0:01:17]} 24. Bd7 {[%emt 0:01:48]} Re4 {[%emt 0:00:52]} 25. Bxc6 {[%emt 0:02:31]} Rxd4 {[%emt 0:00:42]} 26. Qe1 {[%emt 0:00:49]} bxc6 {[%emt 0:01:20]} 27. Nf3 {[%emt 0:00:42]} Qxe1+ {[%emt 0:00:41]} 28. Rxe1 {[%emt 0:00:12]} Rb4 {[%emt 0:00:07]} 29. Re8+ {[%emt 0:02:23]} Kb7 {[%emt 0:00:08]} 30. h4 {[%emt 0:01:12]} Rxb2 {[%emt 0:01:32]} 31. h5 {[%emt 0:00:57]} f5 {[%emt 0:00:15]} 32. Rf8 {[%emt 0:00:52]} 1-0

[Event "34th MPL National U14G-ch 2022"]
[Site "Ahmedabad"]
[Date "2022.05.11"]
[Round "5.5"]
[White "Rout Yashita"]
[Black "Sneha Halder"]
[Result "1/2-1/2"]
[ECO "C06"]
[WhiteElo "1718"]
[BlackElo "1557"]
[Annotator "NA RC COMBH"]
[PlyCount "100"]
[EventDate "2022.05.09"]
[EventType "swiss"]
[EventCountry "IND"]
[SourceTitle "playchess.com"]
[Source "ChessBase"]
[SourceQuality "1"]
[TimeControl "5400+30"]

1. e4 {[%emt 0:00:41]} e6 {[%emt 0:05:53]} 2. d4 {[%emt 0:00:22]} d5 {[%emt 0:00:47]} 3. Nd2 {[%emt 0:00:14]} Nf6 {[%emt 0:02:11]} 4. e5 {[%emt 0:00:46]} Nfd7 {[%emt 0:00:49]} 5. Bd3 {[%emt 0:00:43]} c5 {[%emt 0:00:22]} 6. c3 {[%emt 0:00:46]} Nc6 {[%emt 0:03:31]} 7. Ne2 {[%emt 0:01:11]} Qb6 {[%emt 0:05:00]} 8. Nf3 {[%emt 0:00:44]} cxd4 {[%emt 0:01:02]} 9. cxd4 {[%emt 0:00:21]} Bb4+ {[%emt 0:00:49]} 10. Bd2 {[%emt 0:02:10]} Bxd2+ {[%emt 0:01:22]} 11. Qxd2 {[%emt 0:00:34]} Qb4 {[%emt 0:00:06]} 12. a3 {[%emt 0:06:54]} Qxd2+ {[%emt 0:00:28]} 13. Nxd2 {[%emt 0:00:24]} f6 {[%emt 0:01:06]} 14. f4 {[%emt 0:01:30]} fxe5 {[%emt 0:01:33]} 15. fxe5 {[%emt 0:00:08]} O-O {[%emt 0:00:06]} 16. Rc1 {[%emt 0:04:55]} Nb6 {[%emt 0:08:19]} 17. Nf3 {[%emt 0:08:03]} Bd7 {[%emt 0:03:27]} 18. O-O {[%emt 0:01:24]} Na5 {[%emt 0:01:51]} 19. Nd2 {[%emt 0:20:53]} Rxf1+ {[%emt 0:02:53]} 20. Kxf1 {[%emt 0:04:49]} Rc8 {[%emt 0:01:17]} 21. Rxc8+ {[%emt 0:02:03]} Bxc8 {[%emt 0:05:18]} 22. b3 {[%emt 0:01:04]} Nc6 {[%emt 0:02:21]} 23. Kf2 {[%emt 0:01:10]} g6 {[%emt 0:00:34]} 24. Ke3 {[%emt 0:00:58]} Kf7 {[%emt 0:00:10]} 25. Nf4 {[%emt 0:02:09]} Ne7 {[%emt 0:00:45]} 26. Nf3 {[%emt 0:07:06]} h6 {[%emt 0:00:08]} 27. g4 {[%emt 0:02:19]} Nd7 {[%emt 0:00:57]} 28. Kd2 {[%emt 0:02:49]} Nf8 {[%emt 0:00:35]} 29. Kc3 {[%emt 0:05:26]} Bd7 {[%emt 0:00:40]} 30. h4 {[%emt 0:01:35]} Kg7 {[%emt 0:01:44]} 31. Kb4 {[%emt 0:02:45]} b6 {[%emt 0:00:05]} 32. Kc3 {[%emt 0:00:54]} Be8 {[%emt 0:01:10]} 33. Kd2 {[%emt 0:00:41]} Nc6 {[%emt 0:00:49]} 34. Kc3 {[%emt 0:04:39]} Ne7 {[%emt 0:00:51]} 35. Kd2 {[%emt 0:01:40]} Nc6 {[%emt 0:00:06]} 36. Ne2 {[%emt 0:00:18]} a5 {[%emt 0:04:43]} 37. Ke3 {[%emt 0:01:04]} Na7 {[%emt 0:00:35]} 38. Nc3 {[%emt 0:01:28]} Bd7 {[%emt 0:02:25]} 39. Nd2 {[%emt 0:01:46]} Kf7 {[%emt 0:02:06]} 40. Nf1 {[%emt 0:01:06]} Bc6 {[%emt 0:00:55]} 41. Ng3 {[%emt 0:00:59]} Be8 {[%emt 0:00:29]} 42. Nge2 {[%emt 0:00:48]} g5 {[%emt 0:01:55]} 43. hxg5 {[%emt 0:01:27]} hxg5 {[%emt 0:00:10]} 44. Ng1 {[%emt 0:00:09]} Kg7 {[%emt 0:00:05]} 45. Nf3 {[%emt 0:01:43]} Kh6 {[%emt 0:00:12]} 46. Nd1 {[%emt 0:02:48]} Bg6 {[%emt 0:00:38]} 47. Nf2 {[%emt 0:01:38]} Bxd3 {[%emt 0:00:11]} 48. Kxd3 {[%emt 0:00:22]} Ng6 {[%emt 0:41:01]} 49. Nh3 {[%emt 0:04:34]} Nb5 {[%emt 0:00:30]} 50. a4 {[%emt 0:00:30]} Na7 {[%emt 0:00:30]} 1/2-1/2

[Event "34th MPL National U14G-ch 2022"]
[Site "Ahmedabad"]
[Date "2022.05.11"]
[Round "5.6"]
[White "Sherali Pattnaik"]
[Black "Sachi Jain"]
[Result "0-1"]
[ECO "C41"]
[WhiteElo "1398"]
[BlackElo "1768"]
[Annotator "NA RC COMBH"]
[PlyCount "102"]
[EventDate "2022.05.09"]
[EventType "swiss"]
[EventCountry "IND"]
[SourceTitle "playchess.com"]
[Source "ChessBase"]
[SourceQuality "1"]
[TimeControl "5400+30"]

1. e4 {[%emt 0:00:03]} e5 {[%emt 0:00:39]} 2. Nf3 {[%emt 0:00:03]} d6 {[%emt 0:00:33]} 3. Bc4 {[%emt 0:00:04]} Nd7 {[%emt 0:00:11]} 4. d4 {[%emt 0:00:04]} c6 {[%emt 0:00:11]} 5. O-O {[%emt 0:00:04]} Be7 {[%emt 0:00:23]} 6. dxe5 {[%emt 0:00:31]} dxe5 {[%emt 0:00:12]} 7. Ng5 {[%emt 0:00:34]} Bxg5 {[%emt 0:00:45]} 8. Qh5 {[%emt 0:00:10]} Qe7 {[%emt 0:01:25]} 9. Qxg5 {[%emt 0:00:05]} Ngf6 {[%emt 0:00:06]} 10. b3 {[%emt 0:00:55]} h6 {[%emt 0:12:13]} 11. Qe3 {[%emt 0:08:53]} b5 {[%emt 0:06:03]} 12. Ba3 {[%emt 0:01:23]} b4 {[%emt 0:00:06]} 13. Bb2 {[%emt 0:00:03]} Nb6 {[%emt 0:06:11]} 14. Be2 {[%emt 0:09:42]} O-O {[%emt 0:03:46]} 15. Nd2 {[%emt 0:07:47]} Re8 {[%emt 0:01:18]} 16. a3 {[%emt 0:01:25]} c5 {[%emt 0:02:51]} 17. axb4 {[%emt 0:00:23]} cxb4 {[%emt 0:00:01]} 18. Ra5 {[%emt 0:00:20]} Qc7 {[%emt 0:04:23]} 19. Qc5 {[%emt 0:04:25]} Qxc5 {[%emt 0:06:42]} 20. Rxc5 {[%emt 0:00:04]} Nbd7 {[%emt 0:00:39]} 21. Ra5 {[%emt 0:04:41]} Bb7 {[%emt 0:01:33]} 22. f3 {[%emt 0:01:00]} Nb8 {[%emt 0:22:39]} 23. Rfa1 {[%emt 0:09:25]} Nc6 {[%emt 0:03:10]} 24. Rb5 {[%emt 0:04:24]} Re7 {[%emt 0:06:07]} 25. Nc4 {[%emt 0:05:41]} a6 {[%emt 0:01:43]} 26. Rb6 {[%emt 0:00:56]} Ne8 {[%emt 0:04:17]} 27. Na5 {[%emt 0:05:01]} Nxa5 {[%emt 0:02:31]} 28. Rxa5 {[%emt 0:00:03]} f6 {[%emt 0:02:55]} 29. Rxb4 {[%emt 0:04:07]} Bc8 {[%emt 0:01:16]} 30. Rb6 {[%emt 0:03:46]} Kh7 {[%emt 0:00:23]} 31. b4 {[%emt 0:01:59]} Rea7 {[%emt 0:00:54]} 32. Kf2 {[%emt 0:06:10]} Nc7 {[%emt 0:00:27]} 33. Bc4 {[%emt 0:01:08]} Rb7 {[%emt 0:01:13]} 34. Rxb7 {[%emt 0:00:44]} Bxb7 {[%emt 0:00:02]} 35. Bd3 {[%emt 0:03:24]} Rd8 {[%emt 0:01:39]} 36. Ke3 {[%emt 0:00:46]} Rd6 {[%emt 0:00:18]} 37. c4 {[%emt 0:00:38]} g5 {[%emt 0:03:14]} 38. Ba3 {[%emt 0:01:29]} Rd8 {[%emt 0:02:09]} 39. b5 {[%emt 0:00:35]} Ra8 {[%emt 0:01:17]} 40. b6 {[%emt 0:01:02]} Ne6 {[%emt 0:00:12]} 41. g3 {[%emt 0:00:22]} Nd4 {[%emt 0:00:58]} 42. Bd6 {[%emt 0:03:39]} Kg6 {[%emt 0:00:53]} 43. Rd5 {[%emt 0:00:28]} a5 {[%emt 0:01:54]} 44. Ba3 {[%emt 0:05:34]} Bxd5 {[%emt 0:01:34]} 45. exd5+ {[%emt 0:00:01]} Kf7 {[%emt 0:00:01]} 46. Bd6 {[%emt 0:01:10]} a4 {[%emt 0:00:44]} 47. b7 {[%emt 0:00:02]} Rd8 {[%emt 0:00:03]} 48. c5 {[%emt 0:00:26]} a3 {[%emt 0:00:19]} 49. Bc4 {[%emt 0:00:08]} Nf5+ {[%emt 0:00:58]} 50. Kd3 {[%emt 0:03:30]} Nxd6 {[%emt 0:00:04]} 51. cxd6 {[%emt 0:01:47]} Rb8 {[%emt 0:00:06]} 0-1

[Event "34th MPL National U14G-ch 2022"]
[Site "Ahmedabad"]
[Date "2022.05.11"]
[Round "5.7"]
[White "Rajanya Datta"]
[Black "Aditi Raj"]
[Result "1-0"]
[ECO "C44"]
[WhiteElo "1589"]
[BlackElo "1261"]
[Annotator "NA RC COMBH"]
[PlyCount "109"]
[EventDate "2022.05.09"]
[EventType "swiss"]
[EventCountry "IND"]
[SourceTitle "playchess.com"]
[Source "ChessBase"]
[SourceQuality "1"]
[TimeControl "5400+30"]

1. e4 {[%emt 0:00:12]} e5 {[%emt 0:00:08]} 2. Nf3 {[%emt 0:00:26]} Nc6 {[%emt 0:00:08]} 3. c3 {[%emt 0:00:06]} Nf6 {[%emt 0:00:11]} 4. d4 {[%emt 0:00:16]} exd4 {[%emt 0:00:34]} 5. e5 {[%emt 0:00:12]} Nd5 {[%emt 0:00:11]} 6. cxd4 {[%emt 0:00:12]} d6 {[%emt 0:00:23]} 7. Bb5 {[%emt 0:00:14]} Bd7 {[%emt 0:00:57]} 8. O-O {[%emt 0:00:55]} Be7 {[%emt 0:00:23]} 9. Nc3 {[%emt 0:08:12]} Nb6 {[%emt 0:00:45]} 10. Bxc6 {[%emt 0:09:32]} bxc6 {[%emt 0:00:31]} 11. Re1 {[%emt 0:00:35]} O-O {[%emt 0:00:28]} 12. Bf4 {[%emt 0:00:23]} d5 {[%emt 0:01:46]} 13. Rc1 {[%emt 0:01:51]} Nc4 {[%emt 0:01:51]} 14. b3 {[%emt 0:01:48]} Nb6 {[%emt 0:00:15]} 15. Nb1 {[%emt 0:02:19]} a5 {[%emt 0:01:20]} 16. a3 {[%emt 0:04:59]} Nc8 {[%emt 0:05:27]} 17. Qd2 {[%emt 0:05:58]} Na7 {[%emt 0:02:19]} 18. Bg5 {[%emt 0:06:55]} Bg4 {[%emt 0:07:51]} 19. Bxe7 {[%emt 0:05:25]} Qxe7 {[%emt 0:00:08]} 20. Re3 {[%emt 0:03:26]} Bd7 {[%emt 0:05:50]} 21. Rc5 {[%emt 0:04:27]} Bf5 {[%emt 0:00:53]} 22. Qc1 {[%emt 0:01:03]} Bxb1 {[%emt 0:01:48]} 23. Qxb1 {[%emt 0:00:15]} Nb5 {[%emt 0:00:11]} 24. Qc1 {[%emt 0:03:41]} Ra6 {[%emt 0:06:26]} 25. a4 {[%emt 0:00:33]} Na7 {[%emt 0:00:29]} 26. Qc3 {[%emt 0:02:22]} Rb8 {[%emt 0:03:28]} 27. Rxa5 {[%emt 0:03:02]} Rxb3 {[%emt 0:04:53]} 28. Qxb3 {[%emt 0:07:45]} Rxa5 {[%emt 0:00:09]} 29. Qb8+ {[%emt 0:00:11]} Qf8 {[%emt 0:00:09]} 30. Qxc7 {[%emt 0:00:07]} Rxa4 {[%emt 0:00:48]} 31. h3 {[%emt 0:00:06]} h6 {[%emt 0:03:08]} 32. Rb3 {[%emt 0:00:42]} Kh7 {[%emt 0:00:21]} 33. Rb7 {[%emt 0:00:27]} Nb5 {[%emt 0:02:52]} 34. Qxc6 {[%emt 0:01:34]} Ra1+ {[%emt 0:03:17]} 35. Kh2 {[%emt 0:01:07]} Na7 {[%emt 0:04:37]} 36. Qd7 {[%emt 0:03:30]} Rf1 {[%emt 0:01:38]} 37. Rxa7 {[%emt 0:00:48]} Rxf2 {[%emt 0:00:29]} 38. Qxf7 {[%emt 0:00:06]} Qxf7 {[%emt 0:01:06]} 39. Rxf7 {[%emt 0:00:08]} Re2 {[%emt 0:00:17]} 40. Rd7 {[%emt 0:00:05]} Kg8 {[%emt 0:00:14]} 41. Rxd5 {[%emt 0:00:07]} g5 {[%emt 0:00:15]} 42. Rd6 {[%emt 0:00:12]} Kg7 {[%emt 0:00:26]} 43. d5 {[%emt 0:00:16]} h5 {[%emt 0:00:12]} 44. Kg3 {[%emt 0:00:04]} g4 {[%emt 0:00:26]} 45. hxg4 {[%emt 0:00:08]} hxg4 {[%emt 0:00:06]} 46. Kxg4 {[%emt 0:00:06]} Rxg2+ {[%emt 0:00:35]} 47. Kf4 {[%emt 0:00:08]} Kf7 {[%emt 0:00:10]} 48. e6+ {[%emt 0:00:05]} Ke8 {[%emt 0:00:08]} 49. Rd7 {[%emt 0:00:07]} Re2 {[%emt 0:00:24]} 50. Nd4 {[%emt 0:00:06]} Ra2 {[%emt 0:00:35]} 51. Nc6 {[%emt 0:00:09]} Kf8 {[%emt 0:00:40]} 52. Rd8+ {[%emt 0:00:12]} Kg7 {[%emt 0:00:08]} 53. e7 {[%emt 0:00:06]} Re2 {[%emt 0:00:42]} 54. Ne5 {[%emt 0:00:14]} Kf6 {[%emt 0:00:38]} 55. e8=Q {[%emt 0:00:09]} 1-0

[Event "34th MPL National U14G-ch 2022"]
[Site "Ahmedabad"]
[Date "2022.05.11"]
[Round "5.8"]
[White "Yashvi Jain"]
[Black "Charvi Patidar"]
[Result "0-1"]
[ECO "E60"]
[WhiteElo "1362"]
[BlackElo "1501"]
[Annotator "NA RC COMBH"]
[PlyCount "104"]
[EventDate "2022.05.09"]
[EventType "swiss"]
[EventCountry "IND"]
[SourceTitle "playchess.com"]
[Source "ChessBase"]
[SourceQuality "1"]
[TimeControl "5400+30"]

1. d4 {[%emt 0:00:25]} Nf6 {[%emt 0:00:05]} 2. c4 {[%emt 0:00:15]} g6 {[%emt 0:00:05]} 3. h4 {[%emt 0:00:16]} Bg7 {[%emt 0:00:09]} 4. Nc3 {[%emt 0:00:15]} d6 {[%emt 0:00:11]} 5. e4 {[%emt 0:01:50]} h5 {[%emt 0:00:05]} 6. Nf3 {[%emt 0:00:52]} O-O {[%emt 0:00:42]} 7. Be2 {[%emt 0:02:54]} Nbd7 {[%emt 0:01:04]} 8. Bg5 {[%emt 0:00:47]} c6 {[%emt 0:01:28]} 9. O-O {[%emt 0:01:08]} Nh7 {[%emt 0:02:32]} 10. Qd2 {[%emt 0:02:36]} Nxg5 {[%emt 0:04:09]} 11. Nxg5 {[%emt 0:00:24]} e5 {[%emt 0:05:22]} 12. dxe5 {[%emt 0:04:15]} dxe5 {[%emt 0:01:26]} 13. Rad1 {[%emt 0:00:28]} Qe7 {[%emt 0:03:09]} 14. Qd6 {[%emt 0:03:07]} Bf6 {[%emt 0:00:53]} 15. Qxe7 {[%emt 0:00:54]} Bxe7 {[%emt 0:00:03]} 16. Rd2 {[%emt 0:06:05]} Nc5 {[%emt 0:05:21]} 17. Rfd1 {[%emt 0:08:33]} Bxg5 {[%emt 0:02:36]} 18. hxg5 {[%emt 0:00:48]} Ne6 {[%emt 0:00:07]} 19. b4 {[%emt 0:05:46]} Nxg5 {[%emt 0:02:22]} 20. b5 {[%emt 0:01:42]} Ne6 {[%emt 0:03:29]} 21. Rd6 {[%emt 0:04:40]} Nd4 {[%emt 0:02:20]} 22. Bf1 {[%emt 0:02:20]} cxb5 {[%emt 0:08:47]} 23. cxb5 {[%emt 0:01:27]} g5 {[%emt 0:03:33]} 24. Nd5 {[%emt 0:08:32]} Kg7 {[%emt 0:03:42]} 25. f4 {[%emt 0:12:58]} gxf4 {[%emt 0:02:11]} 26. Nxf4 {[%emt 0:00:22]} Bg4 {[%emt 0:00:32]} 27. Rd2 {[%emt 0:00:47]} Rfd8 {[%emt 0:15:21]} 28. Rxd8 {[%emt 0:02:17]} Rxd8 {[%emt 0:00:03]} 29. Nd5 {[%emt 0:00:33]} Bd7 {[%emt 0:02:09]} 30. a4 {[%emt 0:01:45]} Rc8 {[%emt 0:06:41]} 31. Ne3 {[%emt 0:05:56]} Be6 {[%emt 0:01:36]} 32. Bd3 {[%emt 0:02:09]} Rc3 {[%emt 0:02:44]} 33. Nf5+ {[%emt 0:03:06]} Bxf5 {[%emt 0:01:12]} 34. exf5 {[%emt 0:00:03]} Ra3 {[%emt 0:02:47]} 35. Be2 {[%emt 0:01:56]} Nxe2+ {[%emt 0:00:23]} 36. Rxe2 {[%emt 0:00:02]} Kf6 {[%emt 0:00:11]} 37. Re4 {[%emt 0:01:28]} Kxf5 {[%emt 0:00:40]} 38. Rh4 {[%emt 0:00:02]} Kg5 {[%emt 0:00:41]} 39. Re4 {[%emt 0:00:18]} f6 {[%emt 0:00:17]} 40. Kh2 {[%emt 0:00:08]} Rd3 {[%emt 0:00:53]} 41. Re2 {[%emt 0:01:02]} Rd4 {[%emt 0:00:39]} 42. Ra2 {[%emt 0:00:37]} e4 {[%emt 0:00:16]} 43. Kg3 {[%emt 0:00:37]} f5 {[%emt 0:00:31]} 44. Kh2 {[%emt 0:02:46]} f4 {[%emt 0:00:25]} 45. Kh1 {[%emt 0:02:15]} Kg4 {[%emt 0:00:54]} 46. a5 {[%emt 0:01:27]} Rb4 {[%emt 0:01:16]} 47. a6 {[%emt 0:02:02]} Rxb5 {[%emt 0:00:25]} 48. axb7 {[%emt 0:00:10]} Rxb7 {[%emt 0:00:02]} 49. Kh2 {[%emt 0:00:24]} e3 {[%emt 0:00:33]} 50. Re2 {[%emt 0:01:05]} Rd7 {[%emt 0:00:25]} 51. Kh1 {[%emt 0:00:40]} Kg3 {[%emt 0:00:13]} 52. Re1 {[%emt 0:02:32]} Kf2 {[%emt 0:00:24]} 0-1